Cogmind - Beta 12 @@@ ROGUE MODE // 2024.01.13 @ 21:21:20 Player: neongurkan Result: Destroyed by S-10 Pest with Light Assault Rifle Performance ------------- Evolutions (1) 500 Regions Visited (3) 600 Robots Destroyed (19) 95 Value Destroyed (508) 508 Prototype IDs (0) 0 Alien Tech Used (0) 0 Bonus (0) 0 TOTAL SCORE: 1703 Bonus ------- None Cogmind --------- Core Integrity 0/400 Matter 300/300 Energy 93/100 System Corruption 10% Temperature Cool (6) Movement Core (350) Ox6 Location -9/Materials Parts ------- > --- POWER (1) -------- (None) > --- PROPULSION (2) --- (None) > --- UTILITY (3) ------ Large Storage Unit Power Shielding > --- WEAPON (3) ------- (None) > --- INVENTORY (15) --- Ion Engine Light Ion Engine Light Nuclear Core Improved Heat Sink Improved Heat Sink Large Storage Unit Large Storage Unit Medium Matter Pod (100) Particle Gun Peak State ------------ > --- POWER ------------ Ion Engine > --- PROPULSION ------- Compact Wheel Compact Wheel > --- UTILITY ---------- Improved Heat Sink Large Storage Unit Power Shielding > --- WEAPON ----------- Small Laser Light Assault Rifle > --- INVENTORY -------- Ion Engine Light Ion Engine Light Ion Engine Light Nuclear Core Improved Heat Sink Large Storage Unit Large Storage Unit Medium Matter Pod [Rating: 11] Favorites ----------- Power Light Ion Engine Engine Light Ion Engine Propulsion Aluminum Leg Leg Aluminum Leg Wheel Compact Wheel Utility Improved Heat Sink Device Improved Heat Sink Storage Large Storage Unit Protection Power Shielding Weapon Small Laser Energy Gun Small Laser Ballistic Gun Light Assault Rifle Build | -11 -10 -10 -9 ------- Run | Jun Mat Min Mat Slots Evolved 2 | . . . 2 Power . | . . . . Propulsion . | . . . . Utility 1 | . . . 1 Weapon 1 | . . . 1 Parts Attached 17 | 6 7 1 3 Power 4 | 1 1 1 1 Engine 4 | 1 1 1 1 Core . | . . . . Reactor . | . . . . Propulsion 4 | 2 2 . . Treads . | . . . . Leg 2 | 2 . . . Wheel 2 | . 2 . . Hover . | . . . . Flight . | . . . . Utility 5 | 1 2 . 2 Device 2 | . 1 . 1 Storage 2 | 1 1 . . Processor . | . . . . Hackware . | . . . . Protection 1 | . . . 1 Artifact . | . . . . Weapon 4 | 2 2 . . Energy Gun 2 | 1 1 . . Energy Cannon . | . . . . Ballistic Gun 2 | 1 1 . . Ballistic Cannon . | . . . . Launcher . | . . . . Special Weapon . | . . . . Impact Weapon . | . . . . Slashing Weapon . | . . . . Piercing Weapon . | . . . . Special Melee Weapon . | . . . . Unidentified Prototypes . | . . . . Parts Lost 10 | . 3 . 7 Power 2 | . . . 2 Propulsion 3 | . 1 . 2 Utility 1 | . . . 1 Weapon 4 | . 2 . 2 Highest Loss Streak 6 | . 2 . 6 To Critical Strikes . | . . . . Average Slot Usage (%) 91 | . 93 100 77 Engine 12 | . 14 14 9 Leg 13 | . 24 . . Wheel 11 | . 2 28 14 Device 11 | . 11 14 10 Storage 13 | . 14 14 11 Protection 2 | . . . 11 Energy Gun 13 | . 13 14 10 Ballistic Gun 12 | . 11 14 10 Naked Turns . | . . . . Heaviest Build 29 | 12 28 28 29 Greatest Support 32 | 20 32 32 32 Greatest Overweight (x) 8 | . 2 . 8 Average Overweight (x) . | . . . . Largest Inventory Capacity 15 | 8 15 15 15 Average Capacity 11 | 6 9 15 15 Most Carried 10 | 4 9 9 10 Average Carried 5 | 2 4 7 8 Final Capacity 15 | 8 15 15 15 Final Carried 9 | 4 6 9 9 Class Distribution -------------------- 100% | Mutant Dominant Class ---------------- Mutant | -10/Materials Mutant | -10/Mines Mutant | -9/Materials Resources | -11 -10 -10 -9 ----------- Run | Jun Mat Min Mat Matter Collected 571 | 275 229 33 34 Remotely . | . . . . Salvage Created 681 | 38 367 135 141 Parts 35 | 3 21 6 5 Haulers Intercepted . | . . . . Recyclers Shooed 4 | 1 2 1 . Parts Field Recycled . | . . . . Retrieved Matter . | . . . . Parts Self-Destructed . | . . . . Prevented . | . . . . Kills | -11 -10 -10 -9 ------- Run | Jun Mat Min Mat Combat Hostiles Destroyed 14 | . 8 3 3 Guns 11 | . 5 3 3 AOE 3 | . 3 . . Classes Destroyed 5 | 1 4 . . Tunneler 2 | 2 . . . Recycler 1 | . 1 . . Watcher 2 | . 2 . . Swarmer 3 | . 3 . . Grunt 11 | . 5 3 3 Best Kill Streak 4 | 2 4 2 2 Combat Bots Only 3 | . 3 2 2 Max Kills in Single Turn 2 | 2 2 1 1 Gunslinging . | . . . . Exploded 2 | . 2 . . Melee . | . . . . Uniques/NPCs Destroyed . | . . . . Combat | -11 -10 -10 -9 -------- Run | Jun Mat Min Mat Damage Taken 1498 | 30 431 328 709 Core 542 | . 40 99 403 Absorbed by Shields . | . . . . Redirected to Shielding 31 | . . . 31 Core Remaining (%) 72 | 100 . 44 . Volleys Fired 93 | 5 46 26 16 Largest 2 | 2 2 2 2 Hottest 60 | 60 60 60 60 Shots Fired 168 | 10 74 52 32 Gun 168 | 10 74 52 32 Cannon . | . . . . Launcher . | . . . . Special . | . . . . Kinetic 77 | 5 30 26 16 Thermal 73 | . 31 26 16 Explosive . | . . . . Electromagnetic 18 | 5 13 . . Robot Hit Streak 11 | 2 7 8 11 Robot Miss Streak 6 | 3 6 2 2 Penetration Max . | . . . . Secondary Targets 2 | . 1 1 . Max Gunslinging Chain 1 | . 1 1 . Shots Hit Robots 99 | 3 38 35 23 Core Hits 40 | 2 19 10 9 Critical Kills 1 | . . . 1 Critical Parts Destroyed . | . . . . Critical Strikes 1 | . . . 1 Destroy 1 | . . . 1 Melee Attacks . | . . . . Impact . | . . . . Slashing . | . . . . Piercing . | . . . . Sneak Attacks . | . . . . Combat Hostiles . | . . . . Follow-up Attacks . | . . . . Damage Inflicted 1275 | 115 612 347 201 Guns 1067 | 52 472 342 201 Cannons . | . . . . Explosions 203 | 63 140 . . Melee . | . . . . Ramming 5 | . . 5 . Kinetic 421 | 25 178 138 80 Thermal 741 | 63 353 204 121 Explosive . | . . . . Electromagnetic 108 | 27 81 . . Impact . | . . . . Slashing . | . . . . Piercing . | . . . . Highest Corruption 10 | . . . 10 Average Corruption 10 | . . . 10 Corruption Purged . | . . . . Corruption Blocked . | . . . . Effects 1 | . . . 1 Energy Discharges 1 | . . . 1 Overload Shots . | . . . . Overflow Damage 2 | . 2 . . Projectiles . | . . . . Explosions 2 | . 2 . . Melee . | . . . . Knockbacks . | . . . . Impact . | . . . . Kinetic . | . . . . Secondary . | . . . . Self-Inflicted Damage 32 | 30 . 2 . Shots 1 | 1 . . . Rammed 1 | . . 1 . Targets Rammed 1 | . . 1 . Kicked . | . . . . Crushed . | . . . . Highest Temperature 57 | 12 57 42 2 Average Temperature 23 | 12 36 10 1 Received Heat Transfer 663 | . 213 240 210 Siege Activations . | . . . . Robots Corrupted . | . . . . Combat Hostiles . | . . . . Parts Fried . | . . . . Impact Corruptions . | . . . . Robots Melted . | . . . . Combat Hostiles . | . . . . Parts Melted . | . . . . Heat Transferred 1625 | 150 725 475 275 Parts Sabotaged . | . . . . Parts Stolen . | . . . . Parts Stripped . | . . . . Power Chain Reactions 3 | 1 2 . . Missiles Intercepted . | . . . . Alert | -11 -10 -10 -9 ------- Run | Jun Mat Min Mat Peak Influence 218 | 10 218 101 164 Initial 39 | . 6 6 39 Average 93 | 1 140 65 87 Maximum Alert Level 1 | . 1 . . Low Security (%) 94 | 100 88 100 100 Level 1 5 | . 11 . . Level 2 . | . . . . Level 3 . | . . . . Level 4 . | . . . . Level 5 . | . . . . High Security . | . . . . Max Security . | . . . . Squads Dispatched 4 | . 3 . 1 Investigation 2 | . 2 . . Extermination . | . . . . Reinforcement 2 | . 1 . 1 Assault . | . . . . Garrison . | . . . . Intercept . | . . . . Searches Triggered . | . . . . Construction Impeded . | . . . . Haulers Reinforced . | . . . . Active Scanning Responses . | . . . . Cargo Convoy Interrupts . | . . . . Stealth | -11 -10 -10 -9 --------- Run | Jun Mat Min Mat Distress Signals 2 | . 1 . 1 Communications Jammed . | . . . . Distress Signals . | . . . . Times Spotted 34 | . 11 4 19 Peak Tracking Total 12 | . 4 2 12 Tactical Retreats 2 | . . 1 1 Traps | -11 -10 -10 -9 ------- Run | Jun Mat Min Mat Traps Triggered 2 | . 2 . . Indirectly . | . . . . Trap Hack Attempts . | . . . . Triggered . | . . . . Disarmed . | . . . . Reprogrammed . | . . . . Reused . | . . . . Traps Extracted . | . . . . Installed . | . . . . Triggered . | . . . . Machines | -11 -10 -10 -9 ---------- Run | Jun Mat Min Mat Machines Disabled . | . . . . Max in Single Turn . | . . . . Machines Repaired . | . . . . Machines Sabotaged . | . . . . Overloaded Fab Kills . | . . . . Hacking | -11 -10 -10 -9 --------- Run | Jun Mat Min Mat Machines Accessed 2 | . . . 2 Terminals 2 | . . . 2 Fabricators . | . . . . Repair Stations . | . . . . Recycling Units . | . . . . Scanalyzers . | . . . . Garrison Access . | . . . . Total Hacks 2 | . . . 2 Successful 2 | . . . 2 Failed . | . . . . Catastrophic . | . . . . Database Lockouts . | . . . . Manual . | . . . . Terminals 2 | . . . 2 Fabricators . | . . . . Repair Stations . | . . . . Recycling Units . | . . . . Scanalyzers . | . . . . Garrison Access . | . . . . Terminal Hacks 2 | . . . 2 Record 2 | . . . 2 Fabricator Hacks . | . . . . Repair Station Hacks . | . . . . Recycling Unit Hacks . | . . . . Scanalyzer . | . . . . Garrison Access Hacks . | . . . . Unauthorized Hacks . | . . . . Terminals . | . . . . Fabricators . | . . . . Repair Stations . | . . . . Recycling Units . | . . . . Scanalyzers . | . . . . Garrison Access . | . . . . Data Cores Recovered . | . . . . Used . | . . . . Hacking Detections 2 | . . . 2 Full Trace Events . | . . . . Feedback Events . | . . . . Feedback Blocked . | . . . . Robot Schematics Acquired . | . . . . Robots Built . | . . . . Authchips . | . . . . Time . | . . . . Total Robot Build Rating . | . . . . Part Schematics Acquired . | . . . . Parts Built . | . . . . Authchips . | . . . . Time . | . . . . Total Part Build Rating . | . . . . Parts Repaired . | . . . . Time . | . . . . Parts Recycled . | . . . . Recycled Matter . | . . . . Retrieved Matter . | . . . . Retrieved Components . | . . . . Parts Scanalyzed . | . . . . Part Schematics Acquired . | . . . . Parts Damaged . | . . . . Bothacking | -11 -10 -10 -9 ------------ Run | Jun Mat Min Mat Used RIF Installer . | . . . . Robots Hacked . | . . . . Non-combat . | . . . . Combat . | . . . . Robot Hacks Applied . | . . . . Relay Couplers Released . | . . . . Fabnet Peak Effective % . | . . . . Robots Rewired . | . . . . Allies Hacked . | . . . . Hacks Repelled . | . . . . Allies | -11 -10 -10 -9 -------- Run | Jun Mat Min Mat Total Allies . | . . . . Largest Group . | . . . . Highest-Rated Group . | . . . . Highest-Rated Ally . | . . . . Total Orders . | . . . . Ally Attacks . | . . . . Total Damage . | . . . . Kills . | . . . . Allies Corrupted . | . . . . Allies Melted . | . . . . Intel | -11 -10 -10 -9 ------- Run | Jun Mat Min Mat Robot Analysis Total . | . . . . Derelict Logs Recovered . | . . . . Drone Launches . | . . . . Drone Recoveries . | . . . . Exploration | -11 -10 -10 -9 ------------- Run | Jun Mat Min Mat Turns Passed 918 | 133 409 197 179 Spaces Moved 535 | 88 225 120 102 Core 21 | 12 . . 9 Treads . | . . . . Legs 272 | 76 196 . . Wheels 242 | . 29 120 93 Hover . | . . . . Flight . | . . . . Fastest Speed 50 | 50 100 100 100 Average Speed 116 | 110 122 100 127 Slowest Speed 450 | 120 260 100 450 Overloaded Moves . | . . . . Propulsion Burnouts . | . . . . Robots Hopped . | . . . . Cave-ins Triggered . | . . . . Exploration Rate (%) 18 | 4 32 24 14 Regions Visited 3 Branch Regions 1 Pre-discovered Areas . | . . . . Known Exits Taken . | . . . . Unknown Exits Taken 3 | 1 1 1 . Scrap Searched . | . . . . Spaces Dug . | . . . . Terrain Destroyed 7 | . 7 . . Melee . | . . . . Projectile . | . . . . AOE 7 | . 7 . . Terrain Rammed . | . . . . Walls Destroyed . | . . . . Machines Disabled . | . . . . Actions | -11 -10 -10 -9 --------- Run | Jun Mat Min Mat Total 669 | 113 285 149 122 Wait 7 | 7 . . . Move 532 | 87 224 119 102 Hop . | . . . . Pick Up 16 | 8 5 2 1 Fast Attach 4 | 2 2 . . Attach 9 | 4 3 . 2 Detach . | . . . . Swap 4 | . 2 1 1 Drop 3 | . 3 . . Fire 93 | 5 46 26 16 Melee . | . . . . Ram 1 | . . 1 . Kick . | . . . . Crush . | . . . . Escape Stasis . | . . . . Rewire . | . . . . Trap . | . . . . Miscellaneous . | . . . . Route ------- -11/Junkyard -10/Materials -10/Mines -9/Materials History --------- Turn | Location | Event 3 | -11/Junkyard | Discovered new exit (range 15) 134 | -11/Junkyard | Entered Materials 300 | -10/Materials | Build established: Mutant 314 | -10/Materials | Discovered new exit (range 9) 543 | -10/Materials | Entered Mines 659 | -10/Mines | Core integrity fell below 50% 725 | -10/Mines | Discovered new exit (range 16) 740 | -10/Mines | Entered Materials 740 | -9/Materials | Evolved 2 slots: Utility x1, Weapon x1 901 | -9/Materials | System corruption reached 10% 910 | -9/Materials | Core integrity fell below 50% 916 | -9/Materials | Core integrity fell below 20% 919 | -9/Materials | Destroyed by S-10 Pest with Light Assault Rifle Last Messages --------------- Acquired 10 matter. R-06 Scavenger collects Aluminum Leg. G-34 Mercenary destroyed. R-06 Scavenger collects Ion Engine. Acquired 8 matter. Com. Wheel destroyed. Ion Engine destroyed. Acquired 1 matter. K-01 Serf collects debris. Sml. Laser destroyed. Imp. Heat Sink destroyed. System corrupted by crushing effect (+5). Knocked back. C-30 ARC bursts open, deploying its payload. S-10 Pest unfolds itself. Lgt. Assault Rifle destroyed. Lgt. Ion Engine destroyed. G-34 Mercenary destroyed. System corrupted: Energy discharge (-31). B-36 Bruiser suffers critical hit (Destroy). Map ----- +----------------------------------------------------+ | ?????????????????????????????????????????????????? | | ?????????????????????????????????????????????????? | | ?????????????????????????????????????????????????? | | ?????????????????????????????????????????????????? | | ?????????????????????????????????????????????????? | | ?????????????????????????????????????????????????? | | ####????????????????? ??????????????????????????? | | #????????????????? ?????????????????????????? | | #????????????????? ?????????????????????????? | | #????????????????" "?????????????????????????? | | #?????????""" "?" ""????????????????????????? | | #?????????""" ???" ""????####????????????????? | | #????????? ? ?? ????????????????? | | #???????? ?????????????????? | | #??????# """ """ """ ??????????????????? | | #?????## """ """ """ #???????????????????? | | ########## """ """" """ #???????????????????? | | "%" #???????????????????? | | " Y #???????????????????? | | #???????????????????? | | ######+### r #???????????????????? | | ## !#??####### % #???????????????????? | | ## #????????# s"""" #???????????????????? | | ## """ #?######## """" ###+#####???????????? | | ## """ ### Y ""s"s ????????? | | " ## """ + r g s@ ????????? | | " ## ### % g !% rb g ????????? | | " ########?###/########### #########???????????? | | #????????? ?????????? #???????????????????? | | " #??????? ?????????? #???????????????????? | | " #?????# ????????? #???????????????????? | | " #?????# ?????????? #???????????????????? | | #?????# ] ????????? #???????????????????? | | ###?????# ????????? #???????????????????? | | ????????# /! #???????? +???????????????????? | | ????????# /#????????? #???????????????????? | | ????????####/######????????? #???????????????????? | | ??????????? ??????????????? #???????????????????? | | ??????????? ??????????????? #???????????????????? | | ??????????? ???????????????? ???????????????????? | | ??????????? ?????????????????????????????????????? | | ?????????????????????????????????????????????????? | | ?????????????????????????????????????????????????? | | ?????????????????????????????????????????????????? | | ?????????????????????????????????????????????????? | | ?????????????????????????????????????????????????? | | ?????????????????????????????????????????????????? | | ?????????????????????????????????????????????????? | | ?????????????????????????????????????????????????? | | ?????????????????????????????????????????????????? | +----------------------------------------------------+ Best States ------------- Heat Dissipation 42 Energy Generation 10 Energy Capacity 250 Matter Stores 300 Matter Capacity 300 Sight Range 16 Terrain Scan Density 10 Power Shielding 33 Evasion (%) 55 Item Schematics ----------------- None Robot Schematics ------------------ None Fabricated ------------ Nothing Alien Tech Used ----------------- None Achievements -------------- None Challenges ------------ None Game ------ Seed ReactionTractorAutocannon Manual? 0 Play Time 00:12:56 Cumulative 5.9 hours Start 2024.01.13 @ 21:05:46 End 2024.01.13 @ 21:21:20 Sessions 2 Manual Loads 0 Difficulty Rogue Special Mode None Game No. 17 Rogue 17 Adventurer 0 Explorer 0 Win Type - Total 0 Types 0/0/0/0/0/0/0/0/0 Lore% 8 Gallery% 11 Achievement% 10 Wizard Run 0 Options --------- ASCII 0 Keyboard 0 Movement Mouse Keybinds 0 Fullscreen 1 Font 18/SmallcapsGlow Map View 70x54 Tactical HUD 0 Map Filters NONE Filters NONE Steam 1 RUN: 07c73e94-442b-424c-a181-68f813161248